fUST/lending_fUST_20240125
["ID","MTS","AMOUNT","RATE_DAILY","PERIOD"]
[312754756,1706195441418,-153.0,0.00030137,2]
[312754758,1706195441427,-153.0,0.00030137,2]
[312754760,1706195441436,-153.0,0.00030137,2]
[312754762,1706195441446,-153.0,0.00030137,2]
[312754764,1706195441455,-153.0,0.00030137,2]
[312754766,1706195441464,-153.0,0.00030137,2]
[312754768,1706195441476,-153.0,0.00030137,2]
[312754770,1706195441486,-153.0,0.00030137,2]
[312754772,1706195441499,-153.0,0.00030137,2]
[312754775,1706195441508,-153.0,0.00030137,2]
[312754777,1706195441517,-199.3339408,0.00030137,2]
[312754778,1706195441527,-153.0,0.00030137,2]
[312754780,1706195441538,-153.0,0.00030137,2]
[312754782,1706195441548,-153.0,0.00030137,2]
[312754785,1706195441557,-199.3339408,0.00030137,2]
[312754787,1706195441567,-153.0,0.00030137,2]
[312754789,1706195441579,-153.0,0.00030137,2]
[312754791,1706195441590,-199.3339408,0.00030137,2]
[312754793,1706195441600,-199.3339408,0.00030137,2]
[312754795,1706195441609,-199.3339408,0.00030137,2]
[312754797,1706195441618,-199.3339408,0.00030137,2]
[312754799,1706195441627,-199.3339408,0.00030137,2]
[312754801,1706195441636,-199.3339408,0.00030137,2]
[312754803,1706195441645,-197.9235502,0.00030137,2]
[312754805,1706195441654,-168.195619,0.00030137,2]
[312754807,1706195441663,-173.802139,0.00030137,2]
[312754809,1706195441672,-157.894736,0.00030137,2]
[312754811,1706195441681,-620.03465422,0.00030561,2]
[312754813,1706195441690,-155.0,0.000308,2]
[312754815,1706195441699,-173.802139,0.0003092,2]
[312754817,1706195441708,-326.58097042,0.00031,6]
[312754819,1706195441717,-157.894736,0.00031507,2]
[312754820,1706195441728,-576.0,0.000316,2]
[312754822,1706195441737,-232.8162,0.00031641,2]
[312754823,1706195441746,-173.802139,0.00031703,2]
[312754824,1706195441755,-8392.09761733,0.00031743,2]
[312754825,1706195441764,-3238.32135489,0.00031798,4]
[312754826,1706195441773,-870.40084601,0.00031798,4]
[312754827,1706195441782,-393.719375,0.00031799,2]
[312754828,1706195441790,-393.719375,0.00031799,2]
[312754829,1706195441799,-500.0,0.00031799,7]
[312754830,1706195441807,-500.0,0.00031799,7]
[312754831,1706195441817,-500.0,0.00031799,7]
[312754832,1706195441825,-249.1717594,0.00031799,7]
[312754833,1706195441834,-500.0,0.00031799,7]
[312754834,1706195441842,-500.0,0.00031799,7]
[312754835,1706195441851,-500.0,0.00031799,7]
[312754836,1706195441860,-500.0,0.00031799,7]
[312754837,1706195441869,-500.0,0.00031799,7]
[312754838,1706195441878,-500.0,0.00031799,7]
[312754839,1706195441887,-500.0,0.00031799,7]
[312754840,1706195441896,-500.0,0.00031799,7]
[312754842,1706195441905,-500.0,0.00031799,7]
[312754844,1706195441914,-359.27365659,0.00031799,7]
[312754846,1706195441923,-163.3970098,0.00031799,7]
[312754848,1706195441932,-500.0,0.00031799,7]
[312754850,1706195441941,-285.50777961,0.00031799,7]
[312754852,1706195441950,-465.58471185,0.00031799,7]
[312754854,1706195441959,-500.0,0.00031799,7]
[312754856,1706195441968,-398.21143379,0.00031799,7]
[312754858,1706195441978,-500.0,0.00031799,7]
[312754860,1706195441987,-461.45135582,0.00031799,7]
[312754862,1706195441996,-500.0,0.00031799,7]
[312754871,1706195442071,-500.0,0.00031799,7]
[312754873,1706195442080,-500.0,0.00031799,7]
[312754875,1706195442089,-500.0,0.00031799,7]
[312754877,1706195442098,-195.8900623,0.00031799,7]
[312754879,1706195442107,-485.46475077,0.00031799,7]
[312754881,1706195442116,-500.0,0.00031799,7]
[312754883,1706195442125,-500.0,0.00031799,7]
[312754885,1706195442134,-500.0,0.00031799,7]
[312754887,1706195442143,-639.58236604,0.00031799,7]
[312754889,1706195442152,-479.15749956,0.00031799,2]
[312754891,1706195442161,-381.25968953,0.00031799,7]
[312754893,1706195442170,-500.0,0.00031799,7]
[312754895,1706195442179,-500.0,0.00031799,7]
[312754897,1706195442187,-500.0,0.00031799,7]
[312754899,1706195442196,-196.46810222,0.00031799,7]
[312754901,1706195442206,-343071.14605936,0.000318,2]
[312754903,1706195442215,-393.719375,0.000318,2]
[312754905,1706195442225,-393.719375,0.000318,2]
[312754907,1706195442234,-393.719375,0.000318,2]
[312754909,1706195442243,-393.719375,0.000318,2]
[312754911,1706195442251,-565.589382,0.000318,2]
[312754912,1706195442260,-565.589382,0.000318,2]
[312754915,1706195442270,-151.0,0.000318,2]
[312754917,1706195442279,-421.574485,0.000318,2]
[312754918,1706195442290,-421.574485,0.000318,2]
[312754921,1706195442300,-8991.327783,0.000318,2]
[312754922,1706195442309,-8991.327783,0.000318,2]
[312754924,1706195442318,-151.0,0.000318,2]
[312754926,1706195442327,-195.084018,0.000318,2]
[312754928,1706195442336,-151.0,0.000318,2]
[312754930,1706195442346,-429421.00230788,0.000318,2]
[312754933,1706195442362,-22443.28117791,0.000318,2]
[312754935,1706195442373,-2667.19291855,0.000318,2]
[312754970,1706195442700,-973.16882197,0.0002499,3]
[312755094,1706195443777,-599.48418465,0.0002499,3]
[312755095,1706195443788,-839.04418365,0.0002499,3]
[312755096,1706195443800,-9572.81280973,0.0002499,3]
[312755097,1706195443809,-1815.09256763,0.000318,2]
[312755098,1706195443820,-11647.85953631,0.000318,2]
[312755647,1706196484071,200.0,0.00021998,7]
[312755755,1706196637829,-688.25423184,0.00019267,2]
[312755756,1706196637838,-155.00310006,0.00019268,2]
[312755757,1706196637848,-155.00310006,0.00019269,3]
[312755758,1706196637857,-1583.23422085,0.00019269,2]
[312755759,1706196637866,-167.341358,0.00019278,2]
[312755760,1706196637875,-20908.42418905,0.00019999,2]
[312755762,1706196637885,-155.00310006,0.0002,2]
[312755763,1706196637895,-323.30988592,0.0002,2]
[312755766,1706196637915,-155.00310006,0.0002,2]
[312755770,1706196637928,-155.00310006,0.0002,2]
[312755773,1706196637938,-679.03304923,0.0002,2]
[312755775,1706196637947,-850.73963902,0.0002,2]
[312755777,1706196637957,-1198.61763963,0.0002,2]
[312755780,1706196637967,-470.87385711,0.00020542,2]
[312755782,1706196637980,-2104.41067508,0.00020549,2]
[312755784,1706196637990,-2074.94658461,0.00020558,2]
[312755786,1706196637999,-24900.0,0.0002056,2]
[312755788,1706196638008,-301.10768316,0.00020765,2]
[312755790,1706196638020,-166.666666,0.00021918,2]
[312755792,1706196638030,-2085.40450746,0.00021998,2]
[312755794,1706196638039,-300.0,0.00021998,2]
[312755796,1706196638048,-1826.97153487,0.00021998,2]
[312755798,1706196638058,-294.12602671,0.00022,4]
[312755800,1706196638068,-3970.33105698,0.00022,2]
[312755802,1706196638077,-426.19756797,0.00022,2]
[312755804,1706196638086,-166.666666,0.00022431,2]
[312755806,1706196638096,-166.666666,0.00022944,2]
[312755808,1706196638106,-1416.02167727,0.00023,2]
[312755810,1706196638115,-166.666666,0.00023456,2]
[312755812,1706196638125,-166.666666,0.00023969,2]
[312755814,1706196638134,-157.54385306,0.00023979,2]
[312755816,1706196638144,-280.0,0.00024198,7]
[312755818,1706196638153,-166.666666,0.00024482,2]
[312755820,1706196638163,-312.2386522,0.00024658,2]
[312755822,1706196638173,-214.61510592,0.000249,2]
[312755825,1706196638183,-19044.72,0.00024968,3]
[312755827,1706196638193,-22853.67,0.00024978,3]
[312755829,1706196638202,-194.07706277,0.00024988,2]
[312755831,1706196638211,-528.13445908,0.00024988,2]
[312755833,1706196638221,-193.62860915,0.00024989,2]
[312755835,1706196638231,-260.64797716,0.00024989,2]
[312755837,1706196638241,-4725.91421399,0.00025,2]
[312755839,1706196638251,-7385.90525508,0.00025,2]
[312755841,1706196638260,-391.0,0.00026617,15]
[312755843,1706196638272,-633.86005512,0.00026668,2]
[312755845,1706196638282,-290.53836744,0.00027,2]
[312755860,1706196638417,-155.20393255,0.00028,2]
[312755862,1706196638428,-508.40167916,0.00028,2]
[312755863,1706196638438,-620.69300276,0.00028001,2]
[312755865,1706196638448,-159.24390231,0.0002828,2]
[312755867,1706196638459,-620.80496902,0.0002833,2]
[312755870,1706196638468,-165.921941,0.00028331,2]
[312755872,1706196638478,-9640.87286103,0.00028712,2]
[312755874,1706196638487,-161.06660534,0.00028712,2]
[312755876,1706196638496,-813.38635699,0.00028712,2]
[312755878,1706196638505,-170.24768751,0.00028712,2]
[312755880,1706196638515,-2907.45527164,0.00028712,2]
[312755882,1706196638524,-282.28140602,0.00028712,2]
[312755884,1706196638534,-309.36261394,0.00029,2]
[312755886,1706196638543,-1932.44477539,0.00029,2]
[312755888,1706196638552,-200.0,0.00029279,15]
[312755890,1706196638561,-348.0,0.00029279,15]
[312755892,1706196638570,-620.03465014,0.00029401,2]
[312755894,1706196638579,-620.04024845,0.00029746,2]
[312755896,1706196638588,-155.0,0.000299,2]
[312755898,1706196638597,-3238.32135489,0.00029999,2]
[312755900,1706196638608,-500.0,0.00029999,2]
[312755902,1706196638617,-500.0,0.00029999,2]
[312755904,1706196638626,-500.0,0.00029999,2]
[312755906,1706196638635,-500.0,0.00029999,2]
[312755908,1706196638645,-500.0,0.00029999,2]
[312755910,1706196638654,-500.0,0.00029999,2]
[312755912,1706196638663,-500.0,0.00029999,2]
[312755914,1706196638672,-500.0,0.00029999,2]
[312755916,1706196638682,-500.0,0.00029999,2]
[312755918,1706196638691,-500.0,0.00029999,2]
[312755920,1706196638700,-619.08709211,0.00029999,2]
[312755921,1706196638710,-500.0,0.00029999,2]
[312755923,1706196638719,-500.0,0.00029999,2]
[312755924,1706196638728,-500.0,0.00029999,2]
[312755925,1706196638738,-500.0,0.00029999,2]
[312755927,1706196638747,-500.0,0.00029999,2]
[312755929,1706196638756,-200.39618782,0.00029999,2]
[312755931,1706196638766,-500.0,0.00029999,2]
[312755933,1706196638775,-500.0,0.00029999,2]
[312755935,1706196638784,-500.0,0.00029999,2]
[312755937,1706196638793,-623.8309339,0.00029999,2]
[312755939,1706196638802,-500.0,0.00029999,2]
[312755941,1706196638812,-500.0,0.00029999,2]
[312755943,1706196638821,-500.0,0.00029999,2]
[312755945,1706196638832,-500.0,0.00029999,2]
[312755947,1706196638841,-500.0,0.00029999,2]
[312755949,1706196638850,-500.0,0.00029999,2]
[312755951,1706196638859,-500.0,0.00029999,2]
[312755953,1706196638869,-500.0,0.00029999,2]
[312755955,1706196638879,-500.0,0.00029999,2]
[312755957,1706196638888,-163.38289282,0.00029999,2]
[312755959,1706196638898,-500.0,0.00029999,2]
[312755961,1706196638907,-500.0,0.00029999,2]
[312755963,1706196638916,-500.0,0.00029999,2]
[312755965,1706196638926,-500.0,0.00029999,2]
[312755967,1706196638935,-500.0,0.00029999,2]
[312755969,1706196638944,-500.0,0.00029999,2]
[312755971,1706196638953,-623.89210386,0.00029999,2]
[312755973,1706196638962,-500.0,0.00029999,2]
[312755975,1706196638972,-500.0,0.00029999,2]
[312755977,1706196638981,-500.0,0.00029999,2]
[312755979,1706196638991,-500.0,0.00029999,2]
[312755981,1706196639000,-500.0,0.00029999,2]
[312755984,1706196639010,-500.0,0.00029999,2]
[312755985,1706196639022,-500.0,0.00029999,2]
[312755988,1706196639032,-500.0,0.00029999,2]
[312755989,1706196639041,-500.0,0.00029999,2]
[312755992,1706196639051,-257.4215189,0.00029999,2]
[312755993,1706196639060,-500.0,0.00029999,2]
[312755995,1706196639069,-500.0,0.00029999,2]
[312755997,1706196639078,-500.0,0.00029999,2]
[312756000,1706196639089,-500.0,0.00029999,2]
[312756002,1706196639098,-500.0,0.00029999,2]
[312756004,1706196639107,-500.0,0.00029999,2]
[312756006,1706196639116,-500.0,0.00029999,2]
[312756008,1706196639126,-500.0,0.00029999,2]
[312756010,1706196639135,-500.0,0.00029999,2]
[312756011,1706196639144,-550.0,0.00029999,2]
[312756014,1706196639153,-500.0,0.00029999,2]
[312756015,1706196639162,-500.0,0.00029999,2]
[312756018,1706196639172,-500.0,0.00029999,2]
[312756020,1706196639181,-500.0,0.00029999,2]
[312756022,1706196639190,-500.0,0.00029999,2]
[312756024,1706196639200,-500.0,0.00029999,2]
[312756025,1706196639209,-500.0,0.00029999,2]
[312756028,1706196639218,-500.0,0.00029999,2]
[312756030,1706196639227,-500.0,0.00029999,2]
[312756032,1706196639237,-500.0,0.00029999,2]
[312756034,1706196639246,-500.0,0.00029999,2]
[312756036,1706196639255,-500.0,0.00029999,2]
[312756038,1706196639266,-500.0,0.00029999,2]
[312756040,1706196639274,-2372.54255137,0.0003,2]
[312756041,1706196639283,-1000.0,0.0003,4]
[312756042,1706196639293,-688.78830185,0.0003,4]
[312756043,1706196639302,-139264.62830083,0.0003,4]
[312756044,1706196639311,-195.4790082,0.0003,2]
[312756045,1706196639320,-797.64547305,0.0003,4]
[312756046,1706196639329,-244.31917233,0.0003,4]
[312756047,1706196639338,-270.0,0.0003,2]
[312756048,1706196639347,-153.0,0.00030137,2]
[312756049,1706196639356,-306.0,0.00030137,2]
[312756050,1706196639364,-153.0,0.00030137,2]
[312756051,1706196639374,-153.0,0.00030137,2]
[312756052,1706196639382,-153.0,0.00030137,2]
[312756053,1706196639392,-153.0,0.00030137,2]
[312756054,1706196639401,-153.0,0.00030137,2]
[312756055,1706196639410,-306.0,0.00030137,2]
[312756056,1706196639419,-153.0,0.00030137,2]
[312756057,1706196639428,-153.0,0.00030137,2]
[312756058,1706196639437,-153.0,0.00030137,2]
[312756059,1706196639445,-153.0,0.00030137,2]
[312756060,1706196639454,-153.0,0.00030137,2]
[312756062,1706196639463,-153.0,0.00030137,2]
[312756063,1706196639472,-153.0,0.00030137,2]
[312756065,1706196639481,-153.0,0.00030137,2]
[312756067,1706196639491,-199.3339408,0.00030137,2]
[312756069,1706196639500,-153.0,0.00030137,2]
[312756071,1706196639509,-153.0,0.00030137,2]
[312756073,1706196639524,-153.0,0.00030137,2]
[312756075,1706196639533,-199.3339408,0.00030137,2]
[312756077,1706196639542,-153.0,0.00030137,2]
[312756079,1706196639551,-153.0,0.00030137,2]
[312756081,1706196639561,-199.3339408,0.00030137,2]
[312756083,1706196639571,-199.3339408,0.00030137,2]
[312756085,1706196639581,-199.3339408,0.00030137,2]
[312756087,1706196639590,-199.3339408,0.00030137,2]
[312756089,1706196639600,-199.3339408,0.00030137,2]
[312756092,1706196639610,-199.3339408,0.00030137,2]
[312756094,1706196639619,-199.3339408,0.00030137,2]
[312756096,1706196639629,-199.3339408,0.00030137,2]
[312756097,1706196639638,-306.0,0.00030137,2]
[312756099,1706196639647,-153.0,0.00030137,2]
[312756101,1706196639656,-197.9235502,0.00030137,2]
[312756103,1706196639665,-306.0,0.00030137,2]
[312756105,1706196639676,-153.0,0.00030137,2]
[312756107,1706196639686,-153.0,0.00030137,2]
[312756110,1706196639695,-153.0,0.00030137,2]
[312756112,1706196639705,-153.0,0.00030137,2]
[312756114,1706196639714,-153.0,0.00030137,2]
[312756116,1706196639723,-153.0,0.00030137,2]
[312756118,1706196639732,-153.0,0.00030137,2]
[312756120,1706196639741,-153.0,0.00030137,2]
[312756122,1706196639750,-153.0,0.00030137,2]
[312756124,1706196639759,-153.0,0.00030137,2]
[312756125,1706196639774,-153.0,0.00030137,2]
[312756127,1706196639783,-153.0,0.00030137,2]
[312756130,1706196639793,-153.0,0.00030137,2]
[312756132,1706196639802,-153.0,0.00030137,2]
[312756134,1706196639813,-153.0,0.00030137,2]
[312756136,1706196639823,-153.0,0.00030137,2]
[312756137,1706196639832,-153.0,0.00030137,2]
[312756139,1706196639841,-403.5513808,0.00030137,2]
[312756141,1706196639850,-154.4374714,0.00030137,2]
[312756143,1706196639859,-153.0,0.00030137,2]
[312756145,1706196639869,-153.0,0.00030137,2]
[312756147,1706196639880,-312.3657322,0.00030137,2]
[312756149,1706196639889,-153.0,0.00030137,2]
[312756151,1706196639898,-171.7059798,0.00030137,2]
[312756154,1706196639909,-158.1324524,0.00030137,2]
[312756156,1706196639918,-199.3339408,0.00030137,2]
[312756158,1706196639929,-153.0,0.00030137,2]
[312756160,1706196639938,-199.3339408,0.00030137,2]
[312756162,1706196639947,-199.3339408,0.00030137,2]
[312756164,1706196639957,-306.0,0.00030137,2]
[312756166,1706196639966,-198.571546,0.00030137,2]
[312756169,1706196639976,-378.2624022,0.00030137,2]
[312756170,1706196639986,-307.5721256,0.00030137,2]
[312756172,1706196639995,-199.3339408,0.00030137,2]
[312756175,1706196640005,-163.237447,0.00030137,2]
[312756176,1706196640019,-185.01518,0.00030137,2]
[312756178,1706196640028,-157.894736,0.00030137,2]
[312756180,1706196640037,-498.66582765,0.00030555,5]
[312756182,1706196640047,-500.0,0.00030899,2]
[312756185,1706196640056,-245.19051253,0.00030899,2]
[312756186,1706196640065,-500.0,0.00030899,2]
[312756189,1706196640075,-500.0,0.00030899,2]
[312756192,1706196640095,-500.0,0.00030899,2]
[312756194,1706196640106,-500.0,0.00030899,2]
[312756196,1706196640116,-500.0,0.00030899,2]
[312756198,1706196640126,-500.0,0.00030899,2]
[312756200,1706196640135,-381.25968953,0.00030899,2]
[312756202,1706196640145,-500.0,0.00030899,2]
[312756204,1706196640154,-500.0,0.00030899,2]
[312756206,1706196640164,-500.0,0.00030899,2]
[312756208,1706196640174,-157.91945804,0.00030899,2]
[312756210,1706196640183,-521.90227233,0.00030899,2]
[312756212,1706196640192,-500.0,0.00030899,2]
[312756226,1706196640202,-500.0,0.00030899,2]
[312756228,1706196640323,-500.0,0.00030899,2]
[312756230,1706196640333,-604.89387664,0.00030899,2]
[312756232,1706196640342,-500.0,0.00030899,2]
[312756234,1706196640351,-500.0,0.00030899,2]
[312756236,1706196640361,-500.0,0.00030899,2]
[312756238,1706196640370,-500.0,0.00030899,2]
[312756240,1706196640379,-500.0,0.00030899,2]
[312756242,1706196640388,-500.0,0.00030899,2]
[312756244,1706196640397,-500.0,0.00030899,2]
[312756246,1706196640406,-500.0,0.00030899,2]
[312756248,1706196640415,-196.6817328,0.00030899,2]
[312756249,1706196640425,-500.0,0.00030899,2]
[312756250,1706196640435,-500.0,0.00030899,2]
[312756251,1706196640444,-500.0,0.00030899,2]
[312756252,1706196640453,-489.97988909,0.00030899,2]
[312756253,1706196640463,-500.0,0.00030899,2]
[312756254,1706196640472,-500.0,0.00030899,2]
[312756255,1706196640481,-500.0,0.00030899,2]
[312756256,1706196640491,-500.0,0.00030899,2]
[312756257,1706196640500,-500.0,0.00030899,2]
[312756258,1706196640510,-500.0,0.00030899,2]
[312756259,1706196640523,-500.0,0.00030899,2]
[312756260,1706196640532,-500.0,0.00030899,2]
[312756261,1706196640542,-500.0,0.00030899,2]
[312756262,1706196640551,-500.0,0.00030899,2]
[312756263,1706196640561,-500.0,0.00030899,2]
[312756264,1706196640570,-500.0,0.00030899,2]
[312756265,1706196640579,-500.0,0.00030899,2]
[312756266,1706196640589,-500.0,0.00030899,2]
[312756267,1706196640599,-427.39032001,0.00030899,2]
[312756268,1706196640608,-500.0,0.00030899,2]
[312756269,1706196640617,-500.0,0.00030899,2]
[312756270,1706196640626,-500.0,0.00030899,2]
[312756271,1706196640636,-500.0,0.00030899,2]
[312756272,1706196640645,-500.0,0.00030899,2]
[312756273,1706196640654,-500.0,0.00030899,2]
[312756274,1706196640663,-500.0,0.00030899,2]
[312756275,1706196640672,-500.0,0.00030899,2]
[312756276,1706196640682,-291.31420189,0.000309,3]
[312756277,1706196640692,-772492.14836724,0.000309,2]
[312756278,1706196640701,-185.01518,0.0003092,2]
[312756279,1706196640711,-326.58097042,0.00031,6]
[312756280,1706196640720,-163.237447,0.0003105,2]
[312756281,1706196640730,-200.0,0.000311,4]
[312756282,1706196640739,-620.00201242,0.00031234,2]
[312756283,1706196640748,-155.0,0.0003127,2]
[312756284,1706196640757,-157.894736,0.00031507,2]
[312756286,1706196640769,-7731.18644922,0.00031601,3]
[312756290,1706196640943,-7813.64779726,0.00031601,3]
[312756291,1706196640962,-48326.1351515,0.00031601,3]
[312756292,1706196640971,-5000.0,0.00031601,7]
[312756293,1706196640982,-5000.0,0.00031601,7]
[312756294,1706196640993,-5000.0,0.00031601,7]
[312756295,1706196641002,-5000.0,0.00031601,7]
[312756296,1706196641013,-232.8162,0.00031641,2]
[312756297,1706196641022,-39730.92716432,0.00031686,2]
[312756298,1706196641033,-316.53404975,0.00031686,2]
[312756309,1706196641498,-4026.61466841,0.00024958,3]
[312756310,1706196641511,-11843.98533159,0.00024958,3]
[312756311,1706196641523,-166.666666,0.00028898,2]
[312756312,1706196641533,-166.666666,0.00029686,2]
[312756313,1706196641542,-166.666666,0.00030474,2]
[312756314,1706196641552,-166.666666,0.00031262,2]
[312756315,1706196641561,-767.51573687,0.00031686,2]
[312756400,1706196642927,-4578.50872046,0.00031686,2]
[312756402,1706196642938,-1275.60960201,0.00031686,2]
[312756413,1706196643034,-730.0,0.00031686,2]
[312756415,1706196643045,-546.31282,0.00031686,2]
[312756418,1706196643064,-808.93306313,0.00031686,2]
[312756422,1706196643078,-465.7143465,0.00031686,2]
[312756425,1706196643090,-1116.25571,0.00031686,2]
[312756508,1706196645895,-6763.32861422,0.00031686,2]
[312756515,1706196645960,-1935.5,0.00031686,2]
[312756517,1706196645971,-4527.32692716,0.00031686,2]
[312756523,1706196646024,-102123.21940796,0.00031686,2]
[312756525,1706196646035,-2225.28113743,0.00031686,2]
[312757098,1706197834609,-1583.23422085,0.00023037,2]
[312757100,1706197834619,-850.73963902,0.00023038,2]
[312757101,1706197834629,-154.98450155,0.00023039,2]
[312757103,1706197834638,-155.0,0.0002304,4]
[312757106,1706197834648,-155.0,0.0002304,2]
[312757108,1706197834657,-3970.33105698,0.0002304,2]
[312757109,1706197834667,-1416.02167727,0.00023041,2]
[312757110,1706197834677,-165.921941,0.00023043,2]
[312757111,1706197834686,-1198.61763963,0.00023591,2]
[312757112,1706197834696,-20908.42418905,0.00023591,2]
[312757113,1706197834705,-2074.94658461,0.00023592,2]
[312757114,1706197834714,-2104.41067508,0.00023592,2]
[312757115,1706197834725,-470.87385711,0.00023592,2]
[312757116,1706197834734,-166.666666,0.00023598,2]
[312757117,1706197834745,-4016.27125823,0.00024,2]
[312757118,1706197834755,-166.666666,0.00024241,2]
[312757119,1706197834764,-166.666666,0.00024885,2]
[312757120,1706197834774,-167.15663199,0.00024901,2]
[312757121,1706197834783,-13225.5,0.00024998,3]
[312757122,1706197834793,-7385.90525508,0.00025,2]
[312757123,1706197834802,-4725.91421399,0.00025004,2]
[312757124,1706197834812,-24900.0,0.00025008,2]
[312757125,1706197834822,-166.666666,0.00025528,2]
[312757126,1706197834831,-851.83464622,0.00025935,2]
[312757127,1706197834841,-166.666666,0.00026171,2]
[312757128,1706197834852,-166.666666,0.00026815,2]
[312757129,1706197834861,-290.53836744,0.00027,2]
[312757130,1706197834870,-166.580059,0.00027435,2]
[312757131,1706197834880,-200.0,0.000275,15]
[312757132,1706197834890,-884.38696219,0.00027884,2]
[312757133,1706197834899,-6769.61828109,0.00028416,2]
[312757134,1706197834909,-214.61510592,0.00028429,2]
[312757135,1706197834919,-1000.0,0.00028712,7]
[312757136,1706197834928,-2713.96177671,0.00028712,2]
[312757137,1706197834938,-2082.64876539,0.00028712,2]
[312757138,1706197834947,-396.75272494,0.00028712,2]
[312757139,1706197834956,-155.0,0.000289,2]
[312757140,1706197834966,-2488.94754131,0.00028918,5]
[312757141,1706197834977,-47511.05245869,0.00028918,5]
[312757142,1706197834987,-50000.0,0.0002894,5]
[312757143,1706197834998,-157.84343966,0.00029,2]
[312757144,1706197835007,-1932.44477539,0.00029,2]
[312757145,1706197835017,-633.21934811,0.00029278,2]
[312757146,1706197835026,-569.32134487,0.00029899,2]
[312757147,1706197835035,-500.0,0.00029899,2]
[312757148,1706197835044,-500.0,0.00029899,2]
[312757149,1706197835054,-500.0,0.00029899,2]
[312757150,1706197835063,-346.56523246,0.00029899,2]
[312757151,1706197835073,-500.0,0.00029899,2]
[312757152,1706197835083,-500.0,0.00029899,2]
[312757153,1706197835092,-500.0,0.00029899,2]
[312757154,1706197835102,-579.26476587,0.00029899,2]
[312757155,1706197835111,-500.0,0.00029899,2]
[312757156,1706197835120,-500.0,0.00029899,2]
[312757157,1706197835131,-500.0,0.00029899,2]
[312757158,1706197835140,-500.0,0.00029899,2]
[312757159,1706197835150,-500.0,0.00029899,2]
[312757160,1706197835160,-500.0,0.00029899,2]
[312757161,1706197835170,-500.0,0.00029899,2]
[312757162,1706197835179,-500.0,0.00029899,2]
[312757163,1706197835189,-500.0,0.00029899,2]
[312757164,1706197835200,-500.0,0.00029899,2]
[312757165,1706197835209,-533.68765885,0.00029899,2]
[312757166,1706197835219,-500.0,0.00029899,2]
[312757167,1706197835228,-500.0,0.00029899,2]
[312757168,1706197835240,-500.0,0.00029899,2]
[312757169,1706197835251,-500.0,0.00029899,2]
[312757170,1706197835262,-500.0,0.00029899,2]
[312757171,1706197835271,-500.0,0.00029899,2]
[312757172,1706197835283,-500.0,0.00029899,2]
[312757173,1706197835293,-500.0,0.00029899,2]
[312757174,1706197835303,-549.90879975,0.00029899,2]
[312757175,1706197835315,-500.0,0.00029899,2]
[312757176,1706197835324,-500.0,0.00029899,2]
[312757177,1706197835334,-500.0,0.00029899,2]
[312757178,1706197835344,-500.0,0.00029899,2]
[312757179,1706197835353,-291.31420188,0.000299,3]
[312757180,1706197835362,-276000.0,0.000299,2]
[312757181,1706197835372,-5000.0,0.00029911,5]
[312757182,1706197835382,-5000.0,0.00029911,5]
[312757183,1706197835392,-21183.77925929,0.00029911,3]
[312757184,1706197835402,-5000.0,0.00029911,5]
[312757185,1706197835412,-5000.0,0.00029911,5]
[312757186,1706197835423,-5000.0,0.00029911,5]
[312757187,1706197835433,-5000.0,0.00029911,5]
[312757188,1706197835443,-5000.0,0.00029911,5]
[312757189,1706197835454,-5000.0,0.00029911,5]